{"text_format":"3","workbook":"xlsx","n_sheets":12,"sheets":["Instructions","Cover Letter","1. Contact Details","2. Work Experience","3. People Skills","4. Processes Skills","5. Technology Skills","6. Qualifications","7. Referees","8. Declaration","Variables","CalcSummary"],"not_rendered":{"images":38,"macros":1,"defined_names":19},"read":"whole","date_system":"1900"}

{"sheet":"Instructions","index":0,"n_rows":18,"n_cols":4,"rows_kept":18,"merged":[[3,3,3,7],[4,3,12,7],[13,3,13,7],[15,3,16,7],[18,3,18,7]]}
[]
[{"$nulls":3},"Instructions"]
[]
[{"$nulls":3},"Instructions for the use of the skills matrix:\n1. As this spreadsheet contains Validation Rules and Macros, please \"Enable Editing\" to activate features."]
[{"$nulls":3},"2. The applicant and their contracting company are to complete all sections, and provide all information requested. A \"Cover Letter' is optional.\n\n3. The applicant should begin by completing the '1.Contact Details' worksheet followed by the, '2.Work Experience', '3.People Skills', '4.Process Skills', '5.Technology Skills', '6. Qualifications',  '7.Referees', '8. Declaration' worksheets. \n\n4. Responses are to be provided in the orange areas of the People, Processes, Technology \"Skills\" worksheets. Some responses are to be provided by selecting an option from a drop-down list . Additional evidence and supporting information can be entered by typing in the orange area next to the relevant question. These are not mandatory fields.\n\n5. Each \"Skills\" Criteria also provides PROMPTS so that the Applicant can easily understand what response is required. On these pages the applicant is provided with;\n\n1. Criteria HEADING\n2. A one line DESCRIPTOR\n3. A pop-down prompt which provides information of the ATTRIBUTES (or skill/knowledge/qualities we are looking for in the evidence)\n4. A pop-down prompt which provides specific EXAMPLES of evidence they may like to use to illustrate their capability in this are\n\n\nWhere a response may require you to navigate to another worksheet in this file to complete a table or refer to additional/sample information, a hyperlink has been provided which begins with the words 'click here'. These hyperlinks are underlined."]
{"$rows_empty":8}
[{"$nulls":3},"5. It is recommended that all worksheet sections are completed. A Declaration from the Company Representative and the Specialist Technician Applicant is required on the final worksheet. "]
[]
[{"$nulls":3},"6.  On completion of this spreadsheet the applicant must save the file with a filename corresponding to the following naming convention: "]
[]
[{"$nulls":3},"STSupplier-VacXXXX-XXX ST Vacancy-Skills Matrix (Company Name - Applicant Name).xlsx"]

{"sheet":"Cover Letter","index":1,"n_rows":35,"n_cols":5,"rows_kept":35,"merged":[[3,4,3,6],[6,4,33,6]]}
[]
[{"$nulls":3},"Cover Letter"]
[]
[{"$nulls":4},"Provide an optional cover letter explaining your interest in the position, relevant skills and experience. Applicants should refer to the advertisement for the Vacancy to ensure they have addressed any specific skill requirements. "]
[{"$nulls":4},"Statement*"]
{"$rows_empty":29}
[{"$nulls":4},"*No more than 300 words"]

{"sheet":"1. Contact Details","index":2,"n_rows":62,"n_cols":8,"rows_kept":62}
[]
[{"$nulls":3},"1. Contact Details"]
[]
[]
[{"$nulls":4},"Vacancy Details"]
[]
[{"$nulls":5},"Circular Vacancy Number   ","2021-xxx","[eg. 2018-001]"]
[]
[]
[{"$nulls":4},"Supplier Details"]
[{"$nulls":5},"Company ID",null,"[see TSCirc2016-001]"]
[]
[{"$nulls":5},"Company Name","Edu Geeks"]
[]
[{"$nulls":5},"Postal Address"]
[]
[{"$nulls":5},"Suburb"]
[]
[{"$nulls":5},"State","Vic"]
[]
[{"$nulls":5},"Postcode"]
[]
[{"$nulls":5},"Contact Person"]
[]
[{"$nulls":5},"Contact Number - 1",null,"[eg. 03 9999 9999]"]
[]
[{"$nulls":5},"Contact Number - 2",null,"[eg. 03 9999 9999]"]
[]
[{"$nulls":5},"Mobile Number",null,"[eg. 0400 123 456]"]
[]
[{"$nulls":5},"Email","waqas@atozit.com.au"]
[]
[]
[]
[{"$nulls":4},"Applicant's Details"]
[{"$nulls":5},"First Name"]
[]
[{"$nulls":5},"Last Name"]
[]
[{"$nulls":5},"Preferred Name"]
[]
[{"$nulls":5},"Postal Address"]
[]
[{"$nulls":5},"Suburb"]
[]
[{"$nulls":5},"State",null,"[eg. VIC]"]
[]
[{"$nulls":5},"Postcode"]
[]
[{"$nulls":5},"Contact Number",null,"[eg. 03 9999 9999]"]
[]
[{"$nulls":5},"*Mobile Number",null,"[eg. 0400 123 456]"]
[]
[{"$nulls":5},"*Email"]
[]
[{"$nulls":5},"Current Employer"]
[]
[{"$nulls":5},"Current Role"]
[]
[{"$nulls":5},"Existing ST Number, if applicable",null," (eg. ST99999, for existing technicians)"]
[]
[{"$nulls":6},"* Mandatory Field"]

{"sheet":"2. Work Experience","index":3,"n_rows":63,"n_cols":7,"rows_kept":63,"merged":[[5,3,6,5],[7,3,8,5],[9,3,10,5],[15,1,16,2],[15,3,15,4],[15,5,17,5],[15,6,17,6],[18,1,18,2],[19,1,19,2],[20,1,20,2],[21,1,21,2],[22,1,22,2],[23,1,23,2],[29,3,29,4],[29,5,31,5],[29,6,31,6],[33,3,33,6],[34,3,34,6],[38,3,38,4],[38,5,40,5],[38,6,40,6],[42,3,42,6],[43,3,43,6],[47,3,47,4],[47,5,49,5],[47,6,49,6],[51,3,51,6],[52,3,52,6],[56,3,56,4],[56,5,58,5],[56,6,58,6],[60,3,60,6],[61,3,61,6]]}
[]
[null,"2. Work Experience"]
[]
[null,null,"2.1 Summary of Work History"]
[]
[null,null,"2.1.1","Please indicate the total number of years you have had experience as a Specialist Technician engaged through the eduSTAR.TSS Program."]
[]
[null,null,"2.1.2","Please indicate the total number of years you have been employed/contracting in IT industry and Service Delivery positions."]
[]
[null,null,"2.1.3","With respect to the above question, how many years have you been employed in the education sector?"]
[]
[null,null,"2.2 . Previous Positions"]
[]
[null,null,"2.2.1","Please enter your work history in reverse chronological order (i.e. most recent position first):"]
[]
[{"$nulls":3},"Period",null,"Employer/Client","Role or Position"]
[{"$nulls":3},"From","To"]
[{"$nulls":3},"(dd/mm/yy)","(dd/mm/yy)"]
{"$rows_empty":7}
[null,null,"2.3 Brief Resume"]
[]
[null,null,"  ","Position 1"]
[]
[{"$nulls":3},"Period",null,"Employer/Client","Role or Position"]
[{"$nulls":3},"From","To"]
[{"$nulls":3},"(dd/mm/yy)","(dd/mm/yy)"]
[]
[{"$nulls":3},"Summary of Duties/Responsibilities*"]
[]
[{"$nulls":3},"*No more than 250 words"]
[null,null,"2.3.2","Position 2"]
[]
[{"$nulls":3},"Period",null,"Employer/Client","Role or Position"]
[{"$nulls":3},"From","To"]
[{"$nulls":3},"(dd/mm/yy)","(dd/mm/yy)"]
[{"$nulls":3},{"$f":"IF(ISBLANK(D20),\"\",D20)","v":""},{"$f":"IF(ISBLANK(E20),\"\",E20)","v":""},{"$f":"IF(ISBLANK(F20),\"\",F20)","v":""},{"$f":"IF(ISBLANK(G20),\"\",G20)","v":""}]
[{"$nulls":3},"Summary of Duties/Responsibilities*"]
[]
[{"$nulls":3},"*No more than 250 words"]
[null,null,"5.2.3","Position 3"]
[]
[{"$nulls":3},"Period",null,"Employer/Client","Role or Position"]
[{"$nulls":3},"From","To"]
[{"$nulls":3},"(dd/mm/yy)","(dd/mm/yy)"]
[{"$nulls":3},{"$f":"IF(ISBLANK(D21),\"\",D21)","v":""},{"$f":"IF(ISBLANK(E21),\"\",E21)","v":""},{"$f":"IF(ISBLANK(F21),\"\",F21)","v":""},{"$f":"IF(ISBLANK(G21),\"\",G21)","v":""}]
[{"$nulls":3},"Summary of Duties/Responsibilities*"]
[]
[{"$nulls":3},"*No more than 250 words"]
[null,null,"2.3.4","Position 4"]
[]
[{"$nulls":3},"Period",null,"Employer/Client","Role or Position"]
[{"$nulls":3},"From","To"]
[{"$nulls":3},"(dd/mm/yy)","(dd/mm/yy)"]
[{"$nulls":3},{"$f":"IF(ISBLANK(D22),\"\",D22)","v":""},{"$f":"IF(ISBLANK(E22),\"\",E22)","v":""},{"$f":"IF(ISBLANK(F22),\"\",F22)","v":""},{"$f":"IF(ISBLANK(G22),\"\",G22)","v":""}]
[{"$nulls":3},"Summary of Duties/Responsibilities*"]
[]
[{"$nulls":3},"*No more than 250 words"]

{"sheet":"3. People Skills","index":4,"n_rows":11,"n_cols":6,"rows_kept":11}
[]
[null,"3. People Skills and Experience"]
[]
[]
[null,null,"Criteria","Descriptor","Skill Level","Evidence and Supporting Information"]
[null,null,"Client Communication","The necessary end user communication required to effectively react to incidents, clarify issues and action tasks effectively."]
[null,null,"Consultancy","The provision of ICT advice and recommendations, based on expertise and experience, to address client needs."]
[null,null,"Stakeholder Relationship Management","The management of relationships in an organisation who have an interest in, or may be affected by, an IT system."]
[null,null,"Professional Writing","The use of clear language to convey legible written information in a way that is easily understood by the intended audience and that contains the required amount of detail."]
[null,null,"Technical Documentation Writing","The preparation and maintenance of instructional documentation or training material for users or organisational leadership."]
[null,null,"Leadership","The leadership of ICT planning and change with organisational stakeholders."]

{"sheet":"4. Processes Skills","index":5,"n_rows":11,"n_cols":6,"rows_kept":11}
[]
[null,"4. Process Skills and Experience"]
[]
[]
[null,null,"Criteria","Descriptor","Skill Level","Evidence and Supporting information"]
[null,null,"Service Desk and Incident Management","The processing of incident reports and keeping clients updated of progress towards service restoration."]
[null,null,"IT Operations","The processes used to monitor and control the IT infrastructure (typically hardware, software, data stored on various media, and all equipment within local area networks)."]
[null,null,"Change management","The management of change to the service infrastructure including service assets, configuration items and associated documentation."]
[null,null,"Network support","The processes used to assist users who are connected to in-house networks (such as local area networks), larger distributed systems and to the internet."]
[null,null,"System software support","The processes used to assist users to operate a range of system software.    "]
[null,null,"Applications support","The processes used to assist users to operate a range of applications.","  "]

{"sheet":"5. Technology Skills","index":6,"n_rows":19,"n_cols":6,"rows_kept":19}
[]
[null,"4. Technology Skills and Experience"]
[]
[]
[null,null,"Criteria","Descriptor","Skill Level","Evidence and Supporting information"]
[null,null,"Innovation","The capability to recognise and exploit opportunities ensuring more efficient and effective IT performance."]
[null,null,"Network infrastructure","The production of organisational network designs and configuration of a physical, virtual or wireless network hardware."]
[null,null,"Directory Services","The management of services which maintains the identities and security of users, devices and their properties on a network."]
[null,null,"Server Applications","The installation and configuration of core server application services for use on a private network."]
[null,null,"Storage Management","The planning, implementation, configuration and tuning of storage hardware and software."]
[null,null,"Database Administration","The installation, configuration, upgrade, administration, monitoring and maintenance of physical databases."]
[null,null,"Machine Virtualisation","The creation, installation, configuration and maintenance of virtual server and client systems, storage device or other network resources."]
[null,null,"Deployment","The packaging, building, testing and deploying of system images and updates into a live environment."]
[null,null,"Operating Systems","The installation and configuration of client and server operating systems."]
[null,null,"Client Device Management","The maintenance, troubleshooting and asset management of user devices."]
[null,null,"Peripheral Management","The installation and support of auxiliary devices that connects to and works with client devices."]
[null,null,"Information Content Publishing","The creation and management of intranets, public web sites and other forms of electronic information."]
[null,null,"Information Security","The management and implementation of information security controls."]
[null,null,"Internet Management","The management of internet traffic"]

{"sheet":"6. Qualifications","index":7,"n_rows":41,"n_cols":9,"rows_kept":41,"merged":[[6,2,6,3],[7,2,9,3],[12,4,15,8],[17,4,17,8],[18,3,19,8],[36,6,36,8],[38,6,38,8]]}
[]
[null,"6. Qualifications"]
[]
[]
[null,6.1,"Recent Formal Qualifications in Information Technology"]
[]
[null,null,"Information Technology",null,"Year Completed","Qualification Level","Institution Type","Qualification Title","Institution/Provider Name"]
[null,null,"Please list your most recent formal (AQF or equivalent) qualifications gained in the Information Technology field and attach certificates pdf or jpg (maximum 3):"]
[]
[]
[null,null,"[Note: must be within past 10 years]",null,"*If selected 'Other', please describe briefly in 'Comments' below"]
[{"$nulls":4},"Comments"]
[]
[]
[]
[]
[null,6.2,"Industry Certifications and Qualifications"]
[]
[{"$nulls":3},"*Information is to be provided in the following tables on the Specialist Technician applicant's skills, technical support experience, industry certifications, licenses, qualifications and other details, sufficient to enable the Department to make a fair evaluation of the suitability of the Specialist Technician applicant to provide the required services:"]
[]
[null,null,"6.2.1","Completed - Certifications and Qualifications","Year Completed","Qualification Level","Institution Type","Qualification Title","Institution/Provider Name"]
{"$rows_empty":9}
[null,null,"6.2.3","Other Relevant Training or Current Studies","Year Completed","Details (Complete/In Progress)","Institution Type","Qualification Title","Institution/Provider Name"]
{"$rows_empty":9}
[{"$nulls":5},"  "]

{"sheet":"7. Referees","index":8,"n_rows":58,"n_cols":6,"rows_kept":58}
[]
[null,"7. Referees"]
[]
[null,null,"Referee 1"]
[]
[null,null,"Name of Referee"]
[]
[null,null,"Company/Organisation"]
[]
[null,null,"Position in Organisation"]
[]
[null,null,"Contact Number (BH)",null,null,"[eg. 03 9999 9999]"]
[]
[null,null,"Contact Number (AH)",null,null,"[eg. 03 9999 9999]"]
[]
[null,null,"Email"]
[]
[null,null,"Mobile Number",null,null,"[eg. 0400 123 456]"]
[]
[null,null,"Period (dates) for which reference could be provided",null,null,"[eg. mm/yy - mm/yy]"]
[]
[]
[null,null,"Referee 2"]
[]
[null,null,"Name of Referee"]
[]
[null,null,"Company/Organisation"]
[]
[null,null,"Position in Organisation"]
[]
[null,null,"Contact Number (BH)",null,null,"[eg. 03 9999 9999]"]
[]
[null,null,"Contact Number (AH)",null,null,"[eg. 03 9999 9999]"]
[]
[null,null,"Email"]
[]
[null,null,"Mobile Number",null,null,"[eg. 0400 123 456]"]
[]
[null,null,"Period (dates) for which reference could be provided",null,null,"[eg. mm/yy - mm/yy]"]
[]
[]
[null,null,"Referee 3"]
[]
[null,null,"Name of Referee"]
[]
[null,null,"Company/Organisation"]
[]
[null,null,"Position in Organisation"]
[]
[null,null,"Contact Number (BH)",null,null,"[eg. 03 9999 9999]"]
[]
[null,null,"Contact Number (AH)",null,null,"[eg. 03 9999 9999]"]
[]
[null,null,"Email"]
[]
[null,null,"Mobile Number",null,null,"[eg. 0400 123 456]"]
[]
[null,null,"Period (dates) for which reference could be provided",null,null,"[eg. mm/yy - mm/yy]"]

{"sheet":"8. Declaration","index":9,"n_rows":19,"n_cols":6,"rows_kept":19,"merged":[[4,3,4,6],[7,3,7,4],[7,5,7,6],[9,3,9,8],[16,3,16,4],[16,5,16,6],[18,3,18,8]]}
[]
[null,"8. Declarations"]
[]
[null,null,"1. Company Declaration"]
[]
[{"$nulls":3},"Company Representative's Signature",null,"Date: "]
[]
[]
[]
[{"$nulls":3},"*I declare that to the best of my knowledge, the Specialist Technician applicant meets the pre-requisite selection criteria and all information provided in this document is true and correct.\""]
[]
[]
[null,null,"2. Applicant's Declaration"]
[]
[{"$nulls":3},"Applicant's Signature",null,"Date: "]
[]
[]
[]
[{"$nulls":3},"*I declare that to the best of my knowledge, the information I have provided in this document is true and correct.\""]

{"sheet":"Variables","index":10,"n_rows":31,"n_cols":26,"rows_kept":31,"hidden":true}
[null,"SKILLS","SCORE",null,"FORMAL QUALS",null,null,"INDUSTRY QUALS",null,null,"YEARS",null,null,"COMPLETION YEAR",null,null,"INSTITUTION",null,null,"LANGUAGE FLUENCY",null,null,"SUCCESSFULLY_APPOINTED",null,"PEOPLE_SKILLS","SCORE"]
[null,"1  - No knowledge",0,{"$nulls":21},"1  - No knowledge",0]
[null,"2  - Trained, but limited experience",1,null,"Masters or Above",20,null,"Microsoft Master (MCM or MCSM)",20,null,"0 years",0,null,2018,null,null,"University",null,null,"I speak and understand English fluently.",3,null,"Yes",null,"2  - Trained, but limited experience",1]
[null,"3  - Has experience",2,null,"Bachelor degree  ",18,null,"Microsoft Expert (MCITP, MCPD, MCSE, MCSD or MCTP)",20,null,"0-1 year",20,null,2017,null,null,"TAFE",null,null,"I sometimes make mistakes speaking or understanding.",2,null,"No",null,"3  - Has experience",2]
[null,"4 - Has worked extensively",3,null,"Graduate diploma / Graduate certificate  ",16,null,"Microsoft Associate (MTA, MCTS or MCSA)",15,null,"1-3 years",40,null,2016,null,null,"Private Training Provider",null,null,"I can say and understand a few things in English.",1,{"$nulls":3},"4 - Extensive experience",3]
[null,"5 - Worked extensively and mentored",4,null,"Advanced diploma / Diploma ",13,null,"Cisco Expert or Architect (CCIE)",15,null,"3+ years",60,null,2015,null,null,"Other",null,null,"I do not speak any English.",0,{"$nulls":3},"5 - Worked extensively and mentored",4]
[null,"6 - Expert and can strategic plan",5,null,"Certificate IV",10,null,"Cisco Professional (CCNP)",15,{"$nulls":4},2014,{"$nulls":10},"6 - Expert",5]
[{"$nulls":4},"Certificate III",7,null,"Cisco Associate (CNA)",13,{"$nulls":4},2013]
[{"$nulls":4},"Certificate I or II",3,null,"Cisco Entry (CCNET)",13,{"$nulls":4},2012]
[{"$nulls":4},"Other",1,null,"ITIL Expert or Above",20,{"$nulls":4},2011]
[{"$nulls":7},"ITIL Intermediate",15,{"$nulls":4},2010]
[{"$nulls":7},"ITIL Foundation",13,{"$nulls":4},2009]
[{"$nulls":7},"PRINCE2 Expert",20,{"$nulls":4},2008]
[{"$nulls":7},"PRINCE2 Practitioner",15,{"$nulls":4},2007]
[{"$nulls":7},"PRINCE2 Foundation",13,{"$nulls":4},2006]
[{"$nulls":7},"Other Industry Certification",10,{"$nulls":4},2005]
[{"$nulls":13},2004]
[{"$nulls":13},2003]
[{"$nulls":13},2002]
[{"$nulls":13},2001]
[{"$nulls":13},2000]
[{"$nulls":13},1999]
[{"$nulls":13},1998]
[{"$nulls":13},1997]
[{"$nulls":13},1996]
[{"$nulls":13},1995]
[{"$nulls":13},1994]
[{"$nulls":13},1993]
[{"$nulls":13},1992]
[{"$nulls":13},1991]
[{"$nulls":13},1990]

{"sheet":"CalcSummary","index":11,"n_rows":9,"n_cols":43,"rows_kept":9,"hidden":true,"merged":[[0,4,0,8],[0,13,0,15],[0,19,0,21],[0,27,0,31]]}
[null,"SCORE",{"$f":"SUM(F6:H6) + SUM(K6:AJ6) + SUM(AL6:AQ6)","v":{"$error":"#N/A"}},null,"EXPERIENCE",{"$nulls":4},"SKILLS & KNOWLEDGE:",{"$nulls":3},"PEOPLE",{"$nulls":5},"PROCESSES",{"$nulls":7},"TECHNOLOGY",{"$nulls":9},"QUALIFICATIONS"]
[null,"CIRCULAR NUMBER",{"$f":"'1. Contact Details'!G7","v":"2021-xxx"},null,null,"ST Experience","Years in IT","Years in Education",null,null,"Client Communication","Consultancy","Stakeholder relationship management","Professional Writing","Technical Documentation Writing","Leadership","Service desk and incident management","IT Operations","Change management","Network support","System software support","Applications support","Innovation","Network infrastructure","Directory Services","Server Applications","Storage management","Database administration","Machine Virtualisation","Deployment","Operating Systems","Client Device Management","Peripheral Management","Information Content Publishing","Information Security","Internet Management",null,"Most Recent IT 1","Most Recent IT 2","Most Recent IT 3","Completed Industry 1","Completed Industry 2","Completed Industry 3"]
[null,"ST NAME",{"$f":"'1. Contact Details'!G36 & \" \" &'1. Contact Details'!G38","v":" "},null,{"$f":"SUM(F6:H6)","v":0},{"$nulls":4},{"$f":"SUM(K6:AJ6)","v":0}]
[null,"ST ADDRESS",{"$f":"'1. Contact Details'!G42 & \" \" &'1. Contact Details'!G44","v":" "},{"$nulls":6},"Evidence",{"$f":"IF(LEN('3. People Skills'!F6)>0, \"Yes\", \"No\")","v":"No"},{"$f":"IF(LEN('3. People Skills'!F7)>0, \"Yes\", \"No\")","v":"No"},{"$f":"IF(LEN('3. People Skills'!F8)>0, \"Yes\", \"No\")","v":"No"},{"$f":"IF(LEN('3. People Skills'!F9)>0, \"Yes\", \"No\")","v":"No"},{"$f":"IF(LEN('3. People Skills'!F10)>0, \"Yes\", \"No\")","v":"No"},{"$f":"IF(LEN('3. People Skills'!F11)>0, \"Yes\", \"No\")","v":"No"},{"$f":"IF(LEN('4. Processes Skills'!F6)>0, \"Yes\", \"No\")","v":"No"},{"$f":"IF(LEN('4. Processes Skills'!F7)>0, \"Yes\", \"No\")","v":"No"},{"$f":"IF(LEN('4. Processes Skills'!F8)>0, \"Yes\", \"No\")","v":"No"},{"$f":"IF(LEN('4. Processes Skills'!F9)>0, \"Yes\", \"No\")","v":"No"},{"$f":"IF(LEN('4. Processes Skills'!F10)>0, \"Yes\", \"No\")","v":"No"},{"$f":"IF(LEN('5. Technology Skills'!F6)>0, \"Yes\", \"No\")","v":"No"},{"$f":"IF(LEN('4. Processes Skills'!G11)>0, \"Yes\", \"No\")","v":"No"},{"$f":"IF(LEN('4. Processes Skills'!H11)>0, \"Yes\", \"No\")","v":"No"},{"$f":"IF(LEN('4. Processes Skills'!I11)>0, \"Yes\", \"No\")","v":"No"},{"$f":"IF(LEN('4. Processes Skills'!J11)>0, \"Yes\", \"No\")","v":"No"},{"$f":"IF(LEN('4. Processes Skills'!K11)>0, \"Yes\", \"No\")","v":"No"},{"$f":"IF(LEN('4. Processes Skills'!L11)>0, \"Yes\", \"No\")","v":"No"},{"$f":"IF(LEN('4. Processes Skills'!M11)>0, \"Yes\", \"No\")","v":"No"},{"$f":"IF(LEN('4. Processes Skills'!N11)>0, \"Yes\", \"No\")","v":"No"},{"$f":"IF(LEN('4. Processes Skills'!O11)>0, \"Yes\", \"No\")","v":"No"},{"$f":"IF(LEN('4. Processes Skills'!P11)>0, \"Yes\", \"No\")","v":"No"},{"$f":"IF(LEN('4. Processes Skills'!Q11)>0, \"Yes\", \"No\")","v":"No"},{"$f":"IF(LEN('4. Processes Skills'!R11)>0, \"Yes\", \"No\")","v":"No"},{"$f":"IF(LEN('4. Processes Skills'!S11)>0, \"Yes\", \"No\")","v":"No"},{"$f":"IF(LEN('4. Processes Skills'!T11)>0, \"Yes\", \"No\")","v":"No"},"Level","","","","","",""]
[null,"CURRENT ROLE",{"$f":"'1. Contact Details'!G58","v":0},null,"Years","0 years","0 years","0 years",null,"Response","1  - No knowledge","1  - No knowledge","1  - No knowledge","1  - No knowledge","1  - No knowledge","1  - No knowledge","1  - No knowledge","1  - No knowledge","1  - No knowledge","1  - No knowledge","1  - No knowledge","1  - No knowledge","1  - No knowledge","1  - No knowledge","1  - No knowledge","1  - No knowledge","1  - No knowledge","1  - No knowledge","1  - No knowledge","1  - No knowledge","1  - No knowledge","1  - No knowledge","1  - No knowledge","1  - No knowledge","1  - No knowledge","1  - No knowledge","Year","","","","","",""]
[null,"COMPANY",{"$f":"'1. Contact Details'!G13","v":"Edu Geeks"},null,"Score",{"$f":"LOOKUP(F5,Variables!$K$3:$K$7,Variables!$L$3:$L$7)","v":0},{"$f":"LOOKUP(G5,Variables!$K$3:$K$7,Variables!$L$3:$L$7)","v":0},{"$f":"LOOKUP(H5,Variables!$K$3:$K$7,Variables!$L$3:$L$7)","v":0},null,"Score",{"$f":"LOOKUP(K5,Variables!$Y$2:$Y$7,Variables!$Z$2:$Z$7)","v":0},{"$f":"LOOKUP(L5,Variables!$Y$2:$Y$7,Variables!$Z$2:$Z$7)","v":0},{"$f":"LOOKUP(M5,Variables!$Y$2:$Y$7,Variables!$Z$2:$Z$7)","v":0},{"$f":"LOOKUP(N5,Variables!$Y$2:$Y$7,Variables!$Z$2:$Z$7)","v":0},{"$f":"LOOKUP(O5,Variables!$Y$2:$Y$7,Variables!$Z$2:$Z$7)","v":0},{"$f":"LOOKUP(P5,Variables!$Y$2:$Y$7,Variables!$Z$2:$Z$7)","v":0},{"$f":"LOOKUP(Q5,Variables!$B$2:$B$7,Variables!$C$2:$C$7)","v":0},{"$f":"LOOKUP(R5,Variables!$B$2:$B$7,Variables!$C$2:$C$7)","v":0},{"$f":"LOOKUP(S5,Variables!$B$2:$B$7,Variables!$C$2:$C$7)","v":0},{"$f":"LOOKUP(T5,Variables!$B$2:$B$7,Variables!$C$2:$C$7)","v":0},{"$f":"LOOKUP(U5,Variables!$B$2:$B$7,Variables!$C$2:$C$7)","v":0},{"$f":"LOOKUP(V5,Variables!$B$2:$B$7,Variables!$C$2:$C$7)","v":0},{"$f":"LOOKUP(W5,Variables!$B$2:$B$7,Variables!$C$2:$C$7)","v":0},{"$f":"LOOKUP(X5,Variables!$B$2:$B$7,Variables!$C$2:$C$7)","v":0},{"$f":"LOOKUP(Y5,Variables!$B$2:$B$7,Variables!$C$2:$C$7)","v":0},{"$f":"LOOKUP(Z5,Variables!$B$2:$B$7,Variables!$C$2:$C$7)","v":0},{"$f":"LOOKUP(AA5,Variables!$B$2:$B$7,Variables!$C$2:$C$7)","v":0},{"$f":"LOOKUP(AB5,Variables!$B$2:$B$7,Variables!$C$2:$C$7)","v":0},{"$f":"LOOKUP(AC5,Variables!$B$2:$B$7,Variables!$C$2:$C$7)","v":0},{"$f":"LOOKUP(AD5,Variables!$B$2:$B$7,Variables!$C$2:$C$7)","v":0},{"$f":"LOOKUP(AE5,Variables!$B$2:$B$7,Variables!$C$2:$C$7)","v":0},{"$f":"LOOKUP(AF5,Variables!$B$2:$B$7,Variables!$C$2:$C$7)","v":0},{"$f":"LOOKUP(AG5,Variables!$B$2:$B$7,Variables!$C$2:$C$7)","v":0},{"$f":"LOOKUP(AH5,Variables!$B$2:$B$7,Variables!$C$2:$C$7)","v":0},{"$f":"LOOKUP(AI5,Variables!$B$2:$B$7,Variables!$C$2:$C$7)","v":0},{"$f":"LOOKUP(AJ5,Variables!$B$2:$B$7,Variables!$C$2:$C$7)","v":0},"Score",{"$f":"LOOKUP(AL4, Variables!$E$3:$E$10, Variables!$F$3:$F$10)","v":{"$error":"#N/A"}},{"$f":"LOOKUP(AM4, Variables!$E$3:$E$10, Variables!$F$3:$F$10)","v":{"$error":"#N/A"}},{"$f":"LOOKUP(AN4, Variables!$E$3:$E$10, Variables!$F$3:$F$10)","v":{"$error":"#N/A"}},{"$f":"LOOKUP(AO4, Variables!$H$3:$H$10, Variables!$I$3:$I$10)","v":{"$error":"#N/A"}},{"$f":"LOOKUP(AP4, Variables!$H$3:$H$10, Variables!$I$3:$I$10)","v":{"$error":"#N/A"}},{"$f":"LOOKUP(AQ4, Variables!$H$3:$H$10, Variables!$I$3:$I$10)","v":{"$error":"#N/A"}}]
[null,"EXPERIENCE SCORE"]
[null,"SKILL & KNOWLEDGE SCORE"]
[null,"QUALIFICATIONS SCORE"]